[Event "European Women's Chess Championship (1-48)"]
[Site "Batumi, Georgia"]
[Date "2026.05.25"]
[Round "1.33"]
[White "Khukhashvili, Sopiko"]
[Black "Tashkinova, Sofiia"]
[Result "1-0"]
[TimeControl "90min/ 40moves+ 30min+ 30-sec increment from move 1"]
[WhiteTitle "-"]
[BlackTitle "-"]
[WhiteFideId "13602055"]
[BlackFideId "14188309"]
[WhiteElo "2329"]
[BlackElo "2085"]

1. e4 {[%clk 01:30:58]} e6 {[%clk 01:30:52]} {[%emt 00:00:09]} 2. d4 {[%clk
01:30:20]} {[%emt 00:01:08]} d5 {[%clk 01:31:13]} {[%emt 00:00:09]} 3. e5
{[%clk 01:30:37]} {[%emt 00:00:14]} c5 {[%clk 01:31:26]} {[%emt 00:00:17]} 4.
c3 {[%clk 01:30:59]} {[%emt 00:00:07]} Nc6 {[%clk 01:31:23]} {[%emt 00:00:33]}
5. Nf3 {[%clk 01:31:14]} {[%emt 00:00:15]} Nge7 {[%clk 01:31:12]} {[%emt
00:00:43]} 6. g3 {[%clk 01:31:26]} {[%emt 00:00:16]} Nf5 {[%clk 01:28:45]}
{[%emt 00:02:57]} 7. Bh3 {[%clk 01:31:30]} {[%emt 00:00:26]} cxd4 {[%clk
01:25:35]} {[%emt 00:03:41]} 8. cxd4 {[%clk 01:30:51]} {[%emt 00:01:09]} Be7
{[%clk 01:25:20]} {[%emt 00:00:44]} 9. Nc3 {[%clk 01:29:02]} {[%emt 00:02:19]}
O-O {[%clk 01:22:59]} {[%emt 00:02:51]} 10. O-O {[%clk 01:25:43]} {[%emt
00:03:49]} b6 {[%clk 01:12:11]} {[%emt 00:11:18]} 11. Re1 {[%clk 01:25:27]}
{[%emt 00:00:46]} g6 {[%clk 01:03:47]} {[%emt 00:08:54]} 12. Bxf5 {[%clk
01:19:50]} {[%emt 00:06:07]} exf5 {[%clk 01:02:27]} {[%emt 00:01:50]} 13. Bh6
{[%clk 01:19:49]} {[%emt 00:00:31]} Re8 {[%clk 01:01:40]} {[%emt 00:01:17]} 14.
h4 {[%clk 01:18:55]} {[%emt 00:01:24]} Be6 {[%clk 00:58:00]} {[%emt 00:04:11]}
15. Kg2 {[%clk 01:18:14]} {[%emt 00:01:11]} f6 {[%clk 00:52:00]} {[%emt
00:06:29]} 16. exf6 {[%clk 01:16:04]} {[%emt 00:02:40]} Bxf6 {[%clk 00:52:21]}
{[%emt 00:00:09]} 17. Bg5 {[%clk 01:15:52]} {[%emt 00:00:42]} Kg7 {[%clk
00:47:00]} {[%emt 00:05:51]} 18. Qd2 {[%clk 01:15:26]} {[%emt 00:00:56]} Bxg5
{[%clk 00:45:36]} {[%emt 00:01:54]} 19. Nxg5 {[%clk 01:12:20]} {[%emt
00:03:36]} Qd7 {[%clk 00:44:33]} {[%emt 00:01:33]} 20. h5 {[%clk 01:09:18]}
{[%emt 00:03:32]} h6 {[%clk 00:38:34]} {[%emt 00:06:29]} 21. Nxe6+ {[%clk
01:08:16]} {[%emt 00:01:32]} Rxe6 {[%clk 00:38:57]} {[%emt 00:00:06]} 22. Rxe6
{[%clk 01:08:16]} {[%emt 00:00:31]} Qxe6 {[%clk 00:39:21]} {[%emt 00:00:06]} 23.
Re1 {[%clk 01:08:12]} {[%emt 00:00:34]} Qd6 {[%clk 00:38:54]} {[%emt 00:00:57]}
24. hxg6 {[%clk 01:07:05]} {[%emt 00:01:37]} Rd8 {[%clk 00:38:44]} {[%emt
00:00:40]} 25. Ne2 {[%clk 01:06:53]} {[%emt 00:00:42]} Re8 {[%clk 00:37:05]}
{[%emt 00:02:09]} 26. Nf4 {[%clk 01:07:04]} {[%emt 00:00:19]} Re4 {[%clk
00:34:06]} {[%emt 00:03:29]} 27. Rxe4 {[%clk 01:01:22]} {[%emt 00:06:13]} fxe4
{[%clk 00:32:41]} {[%emt 00:01:54]} 28. Qd1 {[%clk 01:01:31]} {[%emt 00:00:21]}
Ne7 {[%clk 00:32:04]} {[%emt 00:01:07]} 29. Qa4 {[%clk 00:56:15]} {[%emt
00:05:47]} Nxg6 {[%clk 00:25:32]} {[%emt 00:07:01]} 30. Qxa7+ {[%clk 00:55:46]}
{[%emt 00:00:59]} Kf6 {[%clk 00:23:46]} {[%emt 00:02:16]} 31. Nh5+ {[%clk
00:54:55]} {[%emt 00:01:21]} Kg5 {[%clk 00:22:10]} {[%emt 00:02:06]} 32. Qf7
{[%clk 00:54:45]} {[%emt 00:00:40]} Nf8 {[%clk 00:13:45]} {[%emt 00:08:55]} 33.
Nf4 {[%clk 00:54:34]} {[%emt 00:00:40]} Nd7 {[%clk 00:12:21]} {[%emt 00:01:55]}
34. Ne6+ {[%clk 00:54:18]} {[%emt 00:00:45]} 1-0

[Event "European Women's Chess Championship (1-48)"]
[Site "Batumi, Georgia"]
[Date "2026.05.25"]
[Round "1.34"]
[White "Vakhania, Aleksandra"]
[Black "Nomin-Erdene, Davaademberel"]
[Result "0-1"]
[TimeControl "90min/ 40moves+ 30min+ 30-sec increment from move 1"]
[WhiteTitle "-"]
[BlackTitle "-"]
[WhiteFideId "13602560"]
[BlackFideId "4900782"]
[WhiteElo "2079"]
[BlackElo "2328"]

1. f4 {[%clk 01:30:46]} {[%emt 00:00:14]} Nf6 {[%clk 01:25:23]} {[%emt
00:05:37]} 2. Nf3 {[%clk 01:29:55]} {[%emt 00:01:20]} d5 {[%clk 01:24:31]}
{[%emt 00:01:23]} 3. e3 {[%clk 01:30:16]} {[%emt 00:00:09]} c5 {[%clk
01:23:48]} {[%emt 00:01:14]} 4. Bb5+ {[%clk 01:28:09]} {[%emt 00:02:37]} Bd7
{[%clk 01:23:11]} {[%emt 00:01:07]} 5. Be2 {[%clk 01:28:32]} {[%emt 00:00:06]}
Nc6 {[%clk 01:23:35]} {[%emt 00:00:07]} 6. O-O {[%clk 01:28:49]} {[%emt
00:00:11]} d4 {[%clk 01:19:44]} {[%emt 00:04:22]} 7. exd4 {[%clk 01:24:25]}
{[%emt 00:04:54]} cxd4 {[%clk 01:18:00]} {[%emt 00:02:14]} 8. Ne5 {[%clk
01:22:45]} {[%emt 00:02:09]} e6 {[%clk 01:09:46]} {[%emt 00:08:46]} 9. Bf3
{[%clk 01:15:43]} {[%emt 00:07:31]} Bd6 {[%clk 01:07:53]} {[%emt 00:02:23]} 10.
Bxc6 {[%clk 01:07:42]} {[%emt 00:08:31]} Bxc6 {[%clk 01:07:34]} {[%emt
00:00:49]} 11. Nxc6 {[%clk 01:08:01]} {[%emt 00:00:11]} bxc6 {[%clk 01:08:00]}
{[%emt 00:00:04]} 12. d3 {[%clk 01:07:47]} {[%emt 00:00:44]} Qc7 {[%clk
01:08:07]} {[%emt 00:00:24]} 13. c4 {[%clk 00:55:23]} {[%emt 00:12:54]} O-O
{[%clk 00:49:52]} {[%emt 00:18:44]} 14. Qf3 {[%clk 00:47:23]} {[%emt 00:08:29]}
e5 {[%clk 00:47:27]} {[%emt 00:02:57]} 15. c5 {[%clk 00:33:56]} {[%emt
00:13:56]} Bxc5 {[%clk 00:46:22]} {[%emt 00:01:34]} 16. fxe5 {[%clk 00:34:22]}
{[%emt 00:00:05]} Qxe5 {[%clk 00:39:58]} {[%emt 00:06:54]} 17. Bf4 {[%clk
00:34:23]} {[%emt 00:00:28]} Qe6 {[%clk 00:34:26]} {[%emt 00:06:03]} 18. Nd2
{[%clk 00:34:06]} {[%emt 00:00:47]} Nd5 {[%clk 00:33:07]} {[%emt 00:01:49]} 19.
Rac1 {[%clk 00:22:36]} {[%emt 00:11:59]} Be7 {[%clk 00:28:49]} {[%emt
00:04:48]} 20. Nc4 {[%clk 00:13:57]} {[%emt 00:09:09]} Rad8 {[%clk 00:19:55]}
{[%emt 00:09:24]} 21. Bd2 {[%clk 00:13:16]} {[%emt 00:01:11]} f6 {[%clk
00:13:00]} {[%emt 00:07:26]} 22. Rfe1 {[%clk 00:11:33]} {[%emt 00:02:12]} Qd7
{[%clk 00:13:16]} {[%emt 00:00:15]} 23. Qe4 {[%clk 00:07:33]} {[%emt 00:04:29]}
c5 {[%clk 00:08:26]} {[%emt 00:05:22]} 24. Qe6+ {[%clk 00:02:36]} {[%emt
00:05:26]} Qxe6 {[%clk 00:05:35]} {[%emt 00:03:21]} 25. Rxe6 {[%clk 00:03:04]}
{[%emt 00:00:02]} Kf7 {[%clk 00:04:56]} {[%emt 00:01:09]} 26. Ra6 {[%clk
00:03:10]} {[%emt 00:00:23]} Rd7 {[%clk 00:05:11]} {[%emt 00:00:16]} 27. Kf2
{[%clk 00:03:07]} {[%emt 00:00:32]} Rb8 {[%clk 00:05:19]} {[%emt 00:00:23]} 28.
Kf3 {[%clk 00:02:43]} {[%emt 00:00:53]} Rbb7 {[%clk 00:03:44]} {[%emt
00:02:06]} 29. Bf4 {[%clk 00:02:25]} {[%emt 00:00:47]} Nb4 {[%clk 00:03:53]}
{[%emt 00:00:22]} 30. Ra3 {[%clk 00:02:50]} {[%emt 00:00:05]} Rd5 {[%clk
00:02:18]} {[%emt 00:02:05]} 31. g4 {[%clk 00:02:34]} {[%emt 00:00:46]} g5
{[%clk 00:00:39]} {[%emt 00:02:09]} 32. Bd2 {[%clk 00:02:01]} {[%emt 00:01:02]}
Nc6 {[%clk 00:01:05]} {[%emt 00:00:04]} 33. Ra6 {[%clk 00:02:24]} {[%emt
00:00:07]} Ne5+ {[%clk 00:01:02]} {[%emt 00:00:34]} 34. Nxe5+ {[%clk 00:02:48]}
{[%emt 00:00:06]} Rxe5 {[%clk 00:01:29]} {[%emt 00:00:04]} 35. b3 {[%clk
00:03:11]} {[%emt 00:00:06]} Re6 {[%clk 00:00:33]} {[%emt 00:01:26]} 36. Rxe6
{[%clk 00:02:20]} {[%emt 00:01:20]} Kxe6 {[%clk 00:01:02]} {[%emt 00:00:02]} 37.
h4 {[%clk 00:01:33]} {[%emt 00:01:17]} gxh4 {[%clk 00:00:39]} {[%emt 00:00:53]}
38. Rh1 {[%clk 00:01:52]} {[%emt 00:00:09]} Rb6 {[%clk 00:00:44]} {[%emt
00:00:26]} 39. Rxh4 {[%clk 00:01:55]} {[%emt 00:00:26]} Ra6 {[%clk 00:00:59]}
{[%emt 00:00:16]} 40. a4 {[%clk 00:01:19]} {[%emt 00:01:06]} Rb6 {[%clk
00:01:26]} {[%emt 00:00:04]} 41. Rxh7 {[%clk 00:01:29]} {[%emt 00:00:18]} Rxb3
{[%clk 00:01:21]} {[%emt 00:00:35]} 42. Ke4 {[%clk 00:01:29]} {[%emt 00:00:31]}
Rb2 {[%clk 00:29:05]} {[%emt 00:02:46]} 43. Rh2 {[%clk 00:27:07]} {[%emt
00:04:50]} Bd6 {[%clk 00:23:32]} {[%emt 00:06:04]} 44. Re2 {[%clk 00:27:17]}
{[%emt 00:00:19]} Ra2 {[%clk 00:22:51]} {[%emt 00:01:13]} 45. Kf3+ {[%clk
00:26:18]} {[%emt 00:01:29]} Kd5 {[%clk 00:23:11]} {[%emt 00:00:10]} 46. Bh6
{[%clk 00:25:00]} {[%emt 00:01:47]} Ra3 {[%clk 00:23:33]} {[%emt 00:00:09]} 47.
Rd2 {[%clk 00:21:45]} {[%emt 00:03:44]} c4 {[%clk 00:23:56]} {[%emt 00:00:08]}
48. g5 {[%clk 00:21:45]} {[%emt 00:00:29]} fxg5 {[%clk 00:24:04]} {[%emt
00:00:23]} 49. Bxg5 {[%clk 00:22:09]} {[%emt 00:00:06]} Bb4 {[%clk 00:22:31]}
{[%emt 00:02:03]} 50. Rd1 {[%clk 00:22:23]} {[%emt 00:00:15]} Rxd3+ {[%clk
00:22:49]} {[%emt 00:00:13]} 51. Rxd3 {[%clk 00:22:40]} {[%emt 00:00:13]} cxd3
{[%clk 00:23:15]} {[%emt 00:00:04]} 0-1

[Event "European Women's Chess Championship (1-48)"]
[Site "Batumi, Georgia"]
[Date "2026.05.25"]
[Round "1.35"]
[White "Rakhmangulova, Anastasiya"]
[Black "Liashkevich, Lizaveta"]
[Result "1/2-1/2"]
[TimeControl "90min/ 40moves+ 30min+ 30-sec increment from move 1"]
[WhiteTitle "-"]
[BlackTitle "-"]
[WhiteFideId "14117479"]
[BlackFideId "13518658"]
[WhiteElo "2328"]
[BlackElo "2079"]

1. e4 {[%clk 01:30:58]} e6 {[%clk 01:30:25]} {[%emt 00:00:36]} 2. d4 {[%clk
01:31:22]} {[%emt 00:00:07]} d5 {[%clk 01:30:50]} {[%emt 00:00:05]} 3. Nd2
{[%clk 01:31:46]} {[%emt 00:00:05]} c5 {[%clk 01:29:55]} {[%emt 00:01:25]} 4.
Ngf3 {[%clk 01:32:05]} {[%emt 00:00:10]} cxd4 {[%clk 01:25:45]} {[%emt
00:04:41]} 5. Nxd4 {[%clk 01:31:51]} {[%emt 00:00:43]} Nc6 {[%clk 01:20:32]}
{[%emt 00:05:43]} 6. Bb5 {[%clk 01:32:08]} {[%emt 00:00:14]} Bd7 {[%clk
01:16:58]} {[%emt 00:04:04]} 7. Nxc6 {[%clk 01:32:30]} {[%emt 00:00:08]} Bxc6
{[%clk 01:14:17]} {[%emt 00:03:11]} 8. Bxc6+ {[%clk 01:32:53]} {[%emt
00:00:07]} bxc6 {[%clk 01:14:44]} {[%emt 00:00:04]} 9. c4 {[%clk 01:33:10]}
{[%emt 00:00:13]} Ne7 {[%clk 01:05:28]} {[%emt 00:09:46]} 10. exd5 {[%clk
01:32:27]} {[%emt 00:01:13]} cxd5 {[%clk 01:03:42]} {[%emt 00:02:16]} 11. O-O
{[%clk 01:32:32]} {[%emt 00:00:24]} dxc4 {[%clk 00:55:38]} {[%emt 00:08:35]} 12.
Qa4+ {[%clk 01:32:02]} {[%emt 00:01:00]} Qd7 {[%clk 00:56:01]} {[%emt
00:00:06]} 13. Qxd7+ {[%clk 01:30:24]} {[%emt 00:02:07]} Kxd7 {[%clk 00:56:26]}
{[%emt 00:00:06]} 14. Nxc4 {[%clk 01:30:49]} {[%emt 00:00:05]} Nd5 {[%clk
00:55:40]} {[%emt 00:01:16]} 15. Ne3 {[%clk 01:26:29]} {[%emt 00:04:50]} Nxe3
{[%clk 00:45:53]} {[%emt 00:10:18]} 16. Bxe3 {[%clk 01:26:49]} {[%emt
00:00:10]} Bd6 {[%clk 00:45:29]} {[%emt 00:00:53]} 17. Rfd1 {[%clk 01:24:58]}
{[%emt 00:02:20]} Ke7 {[%clk 00:40:55]} {[%emt 00:05:05]} 18. Rd3 {[%clk
01:24:03]} {[%emt 00:01:24]} Rhd8 {[%clk 00:35:53]} {[%emt 00:05:33]} 19. Rad1
{[%clk 01:23:11]} {[%emt 00:01:21]} e5 {[%clk 00:31:13]} {[%emt 00:05:11]} 20.
g4 {[%clk 01:14:49]} {[%emt 00:08:52]} a6 {[%clk 00:29:09]} {[%emt 00:02:34]}
21. Bb6 {[%clk 01:11:23]} {[%emt 00:03:56]} Rd7 {[%clk 00:29:01]} {[%emt
00:00:38]} 22. Kg2 {[%clk 01:10:46]} {[%emt 00:01:07]} Ke6 {[%clk 00:23:43]}
{[%emt 00:05:48]} 23. Kf3 {[%clk 01:04:32]} {[%emt 00:06:44]} Rc8 {[%clk
00:21:45]} {[%emt 00:02:29]} 24. b3 {[%clk 01:04:08]} {[%emt 00:00:53]} Rc6
{[%clk 00:21:47]} {[%emt 00:00:29]} 25. Ba5 {[%clk 01:04:06]} {[%emt 00:00:31]}
Rb7 {[%clk 00:21:46]} {[%emt 00:00:30]} 26. Bc3 {[%clk 00:53:19]} {[%emt
00:11:17]} Be7 {[%clk 00:17:49]} {[%emt 00:04:28]} 27. Re1 {[%clk 00:44:36]}
{[%emt 00:09:13]} f6 {[%clk 00:17:48]} {[%emt 00:00:31]} 28. Re4 {[%clk
00:44:54]} {[%emt 00:00:11]} Rbc7 {[%clk 00:15:26]} {[%emt 00:02:53]} 29. Ba5
{[%clk 00:41:50]} {[%emt 00:03:34]} Rd7 {[%clk 00:15:39]} {[%emt 00:00:17]} 30.
Rxd7 {[%clk 00:41:24]} {[%emt 00:00:55]} Kxd7 {[%emt 00:00:10]} 31. Ra4 {[%clk
00:41:47]} Bc5 {[%clk 00:13:32]} {[%emt 00:03:05]} 32. Be1 {[%clk 00:36:51]}
{[%emt 00:05:26]} Bd4 {[%clk 00:11:46]} {[%emt 00:02:16]} 33. Ke4 {[%clk
00:36:58]} {[%emt 00:00:23]} Kc7 {[%clk 00:07:48]} {[%emt 00:04:28]} 34. f4
{[%clk 00:35:39]} {[%emt 00:01:49]} Bb2 {[%clk 00:07:27]} {[%emt 00:00:51]} 35.
Bg3 {[%clk 00:35:24]} {[%emt 00:00:44]} Re6 {[%clk 00:04:35]} {[%emt 00:03:22]}
36. Kd3 {[%clk 00:32:15]} {[%emt 00:03:39]} Kb7 {[%clk 00:03:45]} {[%emt
00:01:21]} 37. Re4 {[%clk 00:29:15]} {[%emt 00:03:29]} Bd4 {[%clk 00:01:20]}
{[%emt 00:02:55]} 38. Kc4 {[%clk 00:28:15]} {[%emt 00:01:30]} Kc6 {[%clk
00:01:37]} {[%emt 00:00:13]} 39. b4 {[%clk 00:28:30]} {[%emt 00:00:14]} g5
{[%clk 00:01:29]} {[%emt 00:00:38]} 40. fxg5 {[%clk 00:26:44]} {[%emt
00:02:16]} fxg5 {[%clk 00:01:55]} {[%emt 00:00:05]} 41. a4 {[%clk 00:24:55]}
{[%emt 00:02:19]} Re8 {[%clk 00:01:03]} {[%emt 00:01:22]} 42. Re1 {[%clk
00:24:14]} {[%emt 00:01:40]} Kd6 {[%clk 00:25:52]} {[%emt 00:05:42]} 43. Rf1
{[%clk 00:52:55]} {[%emt 00:01:49]} Rc8+ {[%clk 00:26:06]} {[%emt 00:00:16]} 44.
Kd3 {[%clk 00:53:19]} {[%emt 00:00:04]} Kd5 {[%clk 00:24:04]} {[%emt 00:02:33]}
45. Rf7 {[%clk 00:51:50]} {[%emt 00:01:59]} Rc3+ {[%clk 00:20:46]} {[%emt
00:03:49]} 46. Kd2 {[%clk 00:45:40]} {[%emt 00:06:39]} Rb3 {[%clk 00:19:52]}
{[%emt 00:01:24]} 47. Rb7 {[%clk 00:44:23]} {[%emt 00:01:47]} Ke4 {[%clk
00:19:22]} {[%emt 00:01:00]} 48. b5 {[%clk 00:37:30]} {[%emt 00:07:24]} axb5
{[%clk 00:18:00]} {[%emt 00:01:52]} 49. Rxb5 {[%clk 00:36:57]} {[%emt
00:01:03]} Rxb5 {[%clk 00:18:24]} {[%emt 00:00:06]} 50. axb5 {[%clk 00:37:23]}
{[%emt 00:00:03]} Kd5 {[%clk 00:09:21]} {[%emt 00:09:34]} 51. Ke2 {[%clk
00:36:15]} {[%emt 00:01:37]} Kc4 {[%clk 00:06:15]} {[%emt 00:03:36]} 52. h3
{[%clk 00:29:29]} {[%emt 00:07:16]} h6 {[%clk 00:05:14]} {[%emt 00:01:30]} 53.
Be1 {[%clk 00:27:45]} {[%emt 00:02:14]} Bb6 {[%clk 00:04:06]} {[%emt 00:01:40]}
54. Bd2 {[%clk 00:27:49]} {[%emt 00:00:25]} Bc5 {[%clk 00:03:29]} {[%emt
00:01:08]} 55. Bc1 {[%clk 00:26:47]} {[%emt 00:01:31]} Kxb5 {[%clk 00:02:21]}
{[%emt 00:01:38]} 56. Kd3 {[%clk 00:27:09]} {[%emt 00:00:08]} Kc6 {[%clk
00:01:47]} {[%emt 00:01:05]} 57. Ke4 {[%clk 00:27:33]} {[%emt 00:00:05]} Kd6
{[%clk 00:01:35]} {[%emt 00:00:43]} 58. Bb2 {[%clk 00:26:39]} {[%emt 00:01:24]}
Ke6 {[%clk 00:01:46]} {[%emt 00:00:19]} 59. Bxe5 {[%clk 00:27:03]} {[%emt
00:00:06]} Bf8 {[%clk 00:01:51]} {[%emt 00:00:24]} 60. Bd4 {[%clk 00:27:28]}
{[%emt 00:00:05]} Kf7 {[%clk 00:02:01]} {[%emt 00:00:20]} 61. Kf5 {[%clk
00:27:01]} {[%emt 00:00:56]} Be7 {[%clk 00:02:17]} {[%emt 00:00:15]} 62. Be3
{[%clk 00:25:10]} {[%emt 00:02:22]} Bd8 {[%clk 00:02:25]} {[%emt 00:00:22]} 63.
Bc5 {[%clk 00:25:20]} {[%emt 00:00:20]} Ba5 {[%clk 00:02:29]} {[%emt 00:00:26]}
64. Bf2 {[%clk 00:23:35]} {[%emt 00:02:14]} Bd8 {[%clk 00:02:37]} {[%emt
00:00:22]} 65. Ke5 {[%clk 00:24:00]} {[%emt 00:00:05]} Be7 {[%clk 00:02:43]}
{[%emt 00:00:25]} 66. Kd5 {[%clk 00:24:24]} {[%emt 00:00:05]} Ba3 {[%clk
00:02:48]} {[%emt 00:00:25]} 67. h4 {[%clk 00:22:24]} {[%emt 00:02:30]} gxh4
{[%clk 00:03:07]} {[%emt 00:00:12]} 68. Bxh4 {[%clk 00:22:50]} {[%emt
00:00:03]} Kg6 {[%clk 00:03:32]} {[%emt 00:00:05]} 69. Ke4 {[%clk 00:23:08]}
{[%emt 00:00:13]} 1/2-1/2

[Event "European Women's Chess Championship (1-48)"]
[Site "Batumi, Georgia"]
[Date "2026.05.25"]
[Round "1.36"]
[White "Buyuk, Ecrin Efsa"]
[Black "Mammadova, Gulnar"]
[Result "0-1"]
[TimeControl "90min/ 40moves+ 30min+ 30-sec increment from move 1"]
[WhiteTitle "-"]
[BlackTitle "-"]
[WhiteFideId "44505175"]
[BlackFideId "13403508"]
[WhiteElo "2076"]
[BlackElo "2325"]

1. e4 {[%clk 01:30:58]} {[%emt 00:00:02]} g6 {[%clk 01:30:22]} {[%emt
00:00:38]} 2. d4 {[%clk 01:31:18]} {[%emt 00:00:11]} Bg7 {[%clk 01:30:46]}
{[%emt 00:00:05]} 3. c3 {[%clk 01:31:34]} {[%emt 00:00:14]} d6 {[%clk
01:30:21]} {[%emt 00:00:54]} 4. Nf3 {[%clk 01:30:10]} {[%emt 00:01:55]} Nd7
{[%clk 01:28:29]} {[%emt 00:02:23]} 5. Bd3 {[%clk 01:27:20]} {[%emt 00:03:19]}
e5 {[%clk 01:27:01]} {[%emt 00:01:58]} 6. O-O {[%clk 01:22:58]} {[%emt
00:04:52]} Ne7 {[%clk 01:24:54]} {[%emt 00:02:37]} 7. Nbd2 {[%clk 01:18:56]}
{[%emt 00:04:32]} O-O {[%clk 01:24:41]} {[%emt 00:00:44]} 8. a4 {[%clk
01:02:10]} {[%emt 00:17:15]} a5 {[%clk 01:23:08]} {[%emt 00:02:03]} 9. dxe5
{[%clk 00:52:46]} {[%emt 00:09:54]} dxe5 {[%clk 01:22:30]} {[%emt 00:01:08]} 10.
Nc4 {[%clk 00:51:31]} {[%emt 00:01:45]} Nc6 {[%clk 01:22:24]} {[%emt 00:00:36]}
11. Bc2 {[%clk 00:48:34]} {[%emt 00:03:28]} Nc5 {[%clk 01:18:10]} {[%emt
00:04:43]} 12. Be3 {[%clk 00:43:10]} {[%emt 00:05:53]} Qe7 {[%clk 01:14:07]}
{[%emt 00:04:34]} 13. Qe2 {[%clk 00:33:36]} {[%emt 00:10:03]} Ne6 {[%clk
01:11:03]} {[%emt 00:03:34]} 14. Qd2 {[%clk 00:28:03]} {[%emt 00:06:03]} f5
{[%clk 01:03:25]} {[%emt 00:08:07]} 15. Bh6 {[%clk 00:11:46]} {[%emt 00:16:48]}
Rd8 {[%clk 01:00:32]} {[%emt 00:03:23]} 16. Qc1 {[%clk 00:12:12]} {[%emt
00:00:04]} f4 {[%clk 00:57:40]} {[%emt 00:03:23]} 17. Bxg7 {[%clk 00:12:22]}
{[%emt 00:00:21]} Nxg7 {[%clk 00:56:31]} {[%emt 00:01:38]} 18. h3 {[%clk
00:05:31]} {[%emt 00:07:20]} g5 {[%clk 00:54:56]} {[%emt 00:02:07]} 19. Rd1
{[%clk 00:05:16]} {[%emt 00:00:45]} Re8 {[%clk 00:52:29]} {[%emt 00:02:56]} 20.
Bb3 {[%clk 00:02:57]} {[%emt 00:02:49]} Kh8 {[%clk 00:51:09]} {[%emt 00:01:49]}
21. Nh2 {[%clk 00:02:45]} {[%emt 00:00:43]} h5 {[%clk 00:49:26]} {[%emt
00:02:13]} 22. Rd3 {[%clk 00:03:12]} {[%emt 00:00:03]} Ne6 {[%clk 00:40:11]}
{[%emt 00:09:44]} 23. Rd5 {[%clk 00:01:36]} {[%emt 00:02:07]} Nc5 {[%clk
00:39:45]} {[%emt 00:00:56]} 24. Bc2 {[%clk 00:02:05]} {[%emt 00:00:01]} Nd7
{[%clk 00:37:27]} {[%emt 00:02:48]} 25. Qe1 {[%clk 00:00:55]} {[%emt 00:01:41]}
Nf6 {[%clk 00:36:41]} {[%emt 00:01:16]} 26. Rad1 {[%clk 00:01:24]} g4 {[%clk
00:34:50]} {[%emt 00:02:21]} 27. h4 {[%clk 00:01:26]} {[%emt 00:00:27]} Kg7
{[%clk 00:32:01]} {[%emt 00:03:19]} 28. R5d2 {[%clk 00:00:55]} {[%emt
00:01:02]} Qc5 {[%clk 00:30:54]} {[%emt 00:01:36]} 29. Ne3 {[%clk 00:00:40]}
{[%emt 00:00:45]} fxe3 {[%clk 00:30:28]} {[%emt 00:00:56]} 30. fxe3 {[%clk
00:01:07]} {[%emt 00:00:04]} Be6 {[%clk 00:30:20]} {[%emt 00:00:37]} 31. Nf1
{[%clk 00:01:05]} {[%emt 00:00:32]} Rad8 {[%clk 00:30:19]} {[%emt 00:00:31]} 32.
Bd3 {[%clk 00:00:47]} {[%emt 00:00:48]} Bb3 {[%clk 00:30:02]} {[%emt 00:00:47]}
33. Rc1 {[%clk 00:00:48]} {[%emt 00:00:30]} Bc4 {[%clk 00:29:11]} {[%emt
00:01:20]} 34. Bxc4 {[%clk 00:01:08]} {[%emt 00:00:10]} Qxc4 {[%clk 00:29:28]}
{[%emt 00:00:13]} 35. Ng3 {[%clk 00:00:58]} {[%emt 00:00:41]} Ne7 {[%clk
00:28:17]} {[%emt 00:01:40]} 36. b3 {[%clk 00:00:45]} {[%emt 00:00:44]} Qxb3
{[%clk 00:28:04]} {[%emt 00:00:42]} 37. Rf2 {[%clk 00:01:10]} {[%emt 00:00:04]}
Qc4 {[%clk 00:26:57]} {[%emt 00:01:37]} 38. Rf1 {[%clk 00:00:57]} {[%emt
00:00:44]} Rf8 {[%clk 00:26:30]} {[%emt 00:00:57]} 39. Rd1 {[%clk 00:00:50]}
{[%emt 00:00:38]} Rxd1 {[%clk 00:25:32]} {[%emt 00:01:28]} 40. Qxd1 {[%clk
00:01:18]} {[%emt 00:00:01]} Qxc3 {[%clk 00:25:23]} {[%emt 00:00:39]} 41. Nxh5+
{[%clk 00:00:42]} {[%emt 00:01:06]} Nxh5 {[%clk 00:23:55]} {[%emt 00:01:59]} 42.
Qxg4+ {[%clk 00:01:07]} {[%emt 00:00:05]} Ng6 {[%clk 00:24:17]} {[%emt
00:00:07]} 43. Rxf8 {[%clk 00:01:28]} {[%emt 00:00:09]} Kxf8 {[%clk 00:24:43]}
{[%emt 00:00:04]} 44. Qxg6 {[%clk 00:00:53]} {[%emt 00:01:05]} Qe1+ {[%clk
00:24:03]} {[%emt 00:01:10]} 45. Kh2 {[%clk 00:01:18]} {[%emt 00:00:05]} Qxh4+
{[%clk 00:24:30]} {[%emt 00:00:03]} 46. Kg1 {[%clk 00:01:42]} {[%emt 00:00:05]}
Qe1+ {[%clk 00:24:57]} {[%emt 00:00:04]} 47. Kh2 {[%clk 00:02:09]} {[%emt
00:00:03]} Qg3+ {[%clk 00:24:44]} {[%emt 00:00:42]} 0-1